fUST/lending_fUST_20240803
["ID","MTS","AMOUNT","RATE_DAILY","PERIOD"]
[334029613,1722693052296,-500.0,0.00015068,2]
[334029614,1722693052312,-2091.67,0.00015068,2]
[334029615,1722693052325,-500.0,0.00015068,2]
[334029616,1722693052340,-500.0,0.00015068,2]
[334029617,1722693052355,-8312.34,0.00015068,2]
[334029618,1722693052370,-2779.48,0.00015068,2]
[334029619,1722693052384,-500.0,0.00015068,2]
[334029620,1722693052399,-500.0,0.00015068,2]
[334029621,1722693052414,-1349.38,0.00015068,2]
[334029622,1722693052428,-542.94,0.00015068,2]
[334029623,1722693052437,-603.95,0.00015068,2]
[334029624,1722693052447,-669.01,0.00015068,2]
[334029625,1722693052457,-500.0,0.00015068,2]
[334029626,1722693052467,-971.34,0.00015068,2]
[334029627,1722693052477,-500.0,0.00015068,2]
[334029628,1722693052487,-2164.5,0.00015068,2]
[334029629,1722693052497,-500.0,0.00015068,2]
[334029630,1722693052511,-500.0,0.00015068,2]
[334029631,1722693052522,-1967.44,0.00015068,2]
[334029632,1722693052531,-500.0,0.00015068,2]
[334029633,1722693052541,-564.71,0.00015068,2]
[334029634,1722693052551,-6678.29,0.00015068,2]
[334029635,1722693052563,-774.19,0.00015068,2]
[334029636,1722693052706,-520.24,0.00015068,2]
[334029637,1722693052726,-628.37,0.00015068,2]
[334029638,1722693052736,-500.0,0.00015068,2]
[334029639,1722693052746,-890.25,0.00015068,2]
[334029640,1722693052756,-204.51392388,0.00015068,2]
[334029641,1722693052768,-500.0,0.00015068,2]
[334029642,1722693052778,-507.47,0.00015068,2]
[334029643,1722693052788,-500.0,0.00015068,2]
[334029644,1722693052797,-2633.59,0.00015068,2]
[334029645,1722693052806,-908.6,0.00015068,2]
[334029646,1722693052815,-335.65,0.00015068,2]
[334029647,1722693052825,-907.04,0.00015068,2]
[334029648,1722693052836,-500.0,0.00015068,2]
[334029649,1722693052846,-508.92476227,0.00015068,2]
[334029650,1722693052856,-4437.5,0.00015068,2]
[334029651,1722693052865,-572.25,0.00015068,2]
[334029652,1722693052875,-518.53,0.00015068,2]
[334029653,1722693052884,-1144.61,0.00015068,2]
[334029654,1722693052894,-853.01,0.00015068,2]
[334029655,1722693052904,-1732.13,0.00015068,2]
[334029656,1722693052915,-500.0,0.00015068,2]
[334029657,1722693052925,-500.0,0.00015068,2]
[334029658,1722693052934,-665.13,0.00015068,2]
[334029659,1722693052944,-1026.43,0.00015068,2]
[334029660,1722693052954,-616.64,0.00015068,2]
[334029661,1722693052964,-500.0,0.00015068,2]
[334029662,1722693052975,-1603.47,0.00015068,2]
[334029663,1722693052984,-500.0,0.00015068,2]
[334029664,1722693052995,-500.0,0.00015068,2]
[334029665,1722693053005,-1098.39,0.00015068,2]
[334029666,1722693053020,-1108.09,0.00015068,2]
[334029667,1722693053035,-500.0,0.00015068,2]
[334029668,1722693053044,-500.0,0.00015068,2]
[334029669,1722693053054,-1714.38,0.00015068,2]
[334029670,1722693053064,-2401.23,0.00015068,2]
[334029671,1722693053075,-169.131638,0.00015071,2]
[334029672,1722693053084,-169.131638,0.00015314,2]
[334029673,1722693053094,-195.378209,0.00015314,2]
[334029674,1722693053105,-620.0000096,0.00015323,2]
[334029675,1722693053115,-500.0,0.00015342,2]
[334029676,1722693053126,-500.0,0.00015342,2]
[334029677,1722693053136,-500.0,0.00015342,2]
[334029678,1722693053149,-500.0,0.00015342,2]
[334029679,1722693053160,-852.0,0.00015342,2]
[334029680,1722693053170,-533.81,0.00015342,2]
[334029681,1722693053179,-500.0,0.00015342,2]
[334029682,1722693053189,-1110.36,0.00015342,2]
[334029683,1722693053198,-668.13,0.00015342,2]
[334029684,1722693053208,-161.19293525,0.00015342,2]
[334029685,1722693053218,-516.91,0.00015342,2]
[334029686,1722693053227,-629.71,0.00015342,2]
[334029687,1722693053237,-1596.1,0.00015342,2]
[334029688,1722693053247,-500.0,0.00015342,2]
[334029689,1722693053258,-500.0,0.00015342,2]
[334029690,1722693053267,-519.56,0.00015342,2]
[334029691,1722693053277,-500.0,0.00015342,2]
[334029692,1722693053288,-500.0,0.00015342,2]
[334029693,1722693053298,-868.28,0.00015342,2]
[334029694,1722693053309,-636.54,0.00015342,2]
[334029695,1722693053318,-419.49,0.00015342,2]
[334029696,1722693053331,-500.0,0.00015342,2]
[334029697,1722693053341,-936.17,0.00015342,2]
[334029698,1722693053353,-620.96,0.00015342,2]
[334029699,1722693053365,-1313.74,0.00015342,2]
[334029700,1722693053376,-500.0,0.00015342,2]
[334029701,1722693053388,-500.0,0.00015342,2]
[334029702,1722693053399,-901.21,0.00015342,2]
[334029703,1722693053410,-500.0,0.00015342,2]
[334029704,1722693053421,-761.59,0.00015342,2]
[334029705,1722693053433,-500.0,0.00015342,2]
[334029706,1722693053443,-1270.35,0.00015342,2]
[334029707,1722693053453,-500.0,0.00015342,2]
[334029708,1722693053463,-2487.26,0.00015342,2]
[334029709,1722693053474,-2181.45,0.00015342,2]
[334029710,1722693053484,-303.28328337,0.00015342,2]
[334029711,1722693054820,-155.0,0.00013801,2]
[334029712,1722693054832,-736.87671663,0.00015342,2]
[334029713,1722693054843,-2091.67,0.00015342,2]
[334029714,1722693054853,-500.0,0.00015342,2]
[334029715,1722693054864,-500.0,0.00015342,2]
[334029716,1722693054875,-7877.87471237,0.00015342,2]
[334029717,1722693055207,-434.46528763,0.00015342,2]
[334029718,1722693055218,-2779.48,0.00015342,2]
[334029719,1722693055228,-500.0,0.00015342,2]
[334029720,1722693055238,-500.0,0.00015342,2]
[334029721,1722693055247,-1349.38,0.00015342,2]
[334029722,1722693055257,-542.94,0.00015342,2]
[334029723,1722693055268,-603.95,0.00015342,2]
[334029724,1722693055278,-669.01,0.00015342,2]
[334029725,1722693055287,-500.0,0.00015342,2]
[334029726,1722693055296,-971.34,0.00015342,2]
[334029727,1722693055306,-500.0,0.00015342,2]
[334029728,1722693055318,-2164.5,0.00015342,2]
[334029729,1722693055328,-500.0,0.00015342,2]
[334029730,1722693055338,-500.0,0.00015342,2]
[334029731,1722693055350,-1967.44,0.00015342,2]
[334029732,1722693055360,-500.0,0.00015342,2]
[334029733,1722693055372,-564.71,0.00015342,2]
[334029734,1722693055384,-6678.29,0.00015342,2]
[334029735,1722693055395,-774.19,0.00015342,2]
[334029736,1722693055407,-520.24,0.00015342,2]
[334029737,1722693055416,-628.37,0.00015342,2]
[334029738,1722693055432,-500.0,0.00015342,2]
[334029739,1722693055442,-890.25,0.00015342,2]
[334029740,1722693055452,-500.0,0.00015342,2]
[334029741,1722693055463,-507.47,0.00015342,2]
[334029742,1722693055475,-500.0,0.00015342,2]
[334029743,1722693055487,-2633.59,0.00015342,2]
[334029744,1722693055498,-908.6,0.00015342,2]
[334029745,1722693055512,-907.04,0.00015342,2]
[334029746,1722693055523,-500.0,0.00015342,2]
[334029747,1722693055534,-4437.5,0.00015342,2]
[334029748,1722693055544,-572.25,0.00015342,2]
[334029749,1722693055555,-518.53,0.00015342,2]
[334029750,1722693055564,-1144.61,0.00015342,2]
[334029751,1722693055574,-1732.13,0.00015342,2]
[334029752,1722693055586,-853.01,0.00015342,2]
[334029753,1722693055596,-500.0,0.00015342,2]
[334029754,1722693055608,-500.0,0.00015342,2]
[334029755,1722693055617,-665.13,0.00015342,2]
[334029756,1722693055627,-1026.43,0.00015342,2]
[334029757,1722693055640,-616.64,0.00015342,2]
[334029758,1722693055650,-500.0,0.00015342,2]
[334029759,1722693055661,-1603.47,0.00015342,2]
[334029760,1722693055672,-500.0,0.00015342,2]
[334029761,1722693055684,-500.0,0.00015342,2]
[334029762,1722693055694,-1098.39,0.00015342,2]
[334029763,1722693055703,-1108.09,0.00015342,2]
[334029764,1722693055714,-500.0,0.00015342,2]
[334029765,1722693055723,-500.0,0.00015342,2]
[334029766,1722693055733,-1714.38,0.00015342,2]
[334029767,1722693055743,-2401.23,0.00015342,2]
[334029768,1722693055753,-2433.2328169,0.000154,2]
[334029769,1722693055762,-1714.80927808,0.00015425,2]
[334029770,1722693055773,-500.0,0.00015616,2]
[334029771,1722693055783,-500.0,0.00015616,2]
[334029772,1722693055793,-427.3700103,0.00015616,2]
[334029773,1722693055802,-500.0,0.00015616,2]
[334029774,1722693055812,-852.0,0.00015616,2]
[334029775,1722693055822,-533.81,0.00015616,2]
[334029776,1722693055832,-500.0,0.00015616,2]
[334029777,1722693055842,-1110.36,0.00015616,2]
[334029778,1722693055853,-668.13,0.00015616,2]
[334029779,1722693055863,-516.91,0.00015616,2]
[334029780,1722693055873,-629.71,0.00015616,2]
[334029781,1722693055882,-1596.1,0.00015616,2]
[334029782,1722693055891,-500.0,0.00015616,2]
[334029783,1722693055900,-500.0,0.00015616,2]
[334029784,1722693055909,-519.56,0.00015616,2]
[334029785,1722693055919,-525.64067369,0.00015616,2]
[334029786,1722693055929,-500.0,0.00015616,2]
[334029787,1722693055938,-868.28,0.00015616,2]
[334029788,1722693055948,-636.54,0.00015616,2]
[334029789,1722693055959,-936.17,0.00015616,2]
[334029790,1722693055968,-620.96,0.00015616,2]
[334029791,1722693055978,-1313.74,0.00015616,2]
[334029792,1722693055988,-500.0,0.00015616,2]
[334029793,1722693055998,-500.0,0.00015616,2]
[334029794,1722693056008,-901.21,0.00015616,2]
[334029795,1722693056019,-500.0,0.00015616,2]
[334029796,1722693056029,-761.59,0.00015616,2]
[334029797,1722693056038,-500.0,0.00015616,2]
[334029798,1722693056048,-1270.35,0.00015616,2]
[334029799,1722693056057,-500.0,0.00015616,2]
[334029800,1722693056067,-2487.26,0.00015616,2]
[334029801,1722693056077,-2181.45,0.00015616,2]
[334029802,1722693056088,-1040.16,0.00015616,2]
[334029803,1722693056100,-2091.67,0.00015616,2]
[334029804,1722693056110,-500.0,0.00015616,2]
[334029805,1722693056120,-500.0,0.00015616,2]
[334029806,1722693056130,-8312.34,0.00015616,2]
[334029807,1722693056140,-2779.48,0.00015616,2]
[334029808,1722693056150,-500.0,0.00015616,2]
[334029809,1722693056159,-500.0,0.00015616,2]
[334029810,1722693056169,-1349.38,0.00015616,2]
[334029811,1722693056180,-542.94,0.00015616,2]
[334029812,1722693056192,-603.95,0.00015616,2]
[334029813,1722693056204,-669.01,0.00015616,2]
[334029814,1722693056214,-500.0,0.00015616,2]
[334029815,1722693056225,-971.34,0.00015616,2]
[334029816,1722693056237,-2164.5,0.00015616,2]
[334029817,1722693056248,-313.46,0.00015616,2]
[334029818,1722693056259,-500.0,0.00015616,2]
[334029819,1722693056277,-500.0,0.00015616,2]
[334029820,1722693056288,-1967.44,0.00015616,2]
[334029821,1722693056299,-500.0,0.00015616,2]
[334029822,1722693056309,-564.71,0.00015616,2]
[334029823,1722693056319,-6678.29,0.00015616,2]
[334029824,1722693056330,-774.19,0.00015616,2]
[334029825,1722693056340,-520.24,0.00015616,2]
[334029826,1722693056351,-628.37,0.00015616,2]
[334029827,1722693056361,-500.0,0.00015616,2]
[334029828,1722693056371,-890.25,0.00015616,2]
[334029829,1722693056383,-500.0,0.00015616,2]
[334029830,1722693056394,-507.47,0.00015616,2]
[334029831,1722693056406,-500.0,0.00015616,2]
[334029832,1722693056417,-2633.59,0.00015616,2]
[334029833,1722693056427,-908.6,0.00015616,2]
[334029834,1722693056439,-907.04,0.00015616,2]
[334029835,1722693056451,-500.0,0.00015616,2]
[334029836,1722693056464,-4437.5,0.00015616,2]
[334029837,1722693056475,-572.25,0.00015616,2]
[334029838,1722693056487,-518.53,0.00015616,2]
[334029839,1722693056496,-1144.61,0.00015616,2]
[334029840,1722693056513,-1732.13,0.00015616,2]
[334029841,1722693056523,-853.01,0.00015616,2]
[334029842,1722693056534,-500.0,0.00015616,2]
[334029843,1722693056545,-500.0,0.00015616,2]
[334029844,1722693056556,-665.13,0.00015616,2]
[334029845,1722693056567,-1026.43,0.00015616,2]
[334029846,1722693056579,-616.64,0.00015616,2]
[334029847,1722693056592,-542.9691609,0.00015616,2]
[334029848,1722693056602,-1603.47,0.00015616,2]
[334029849,1722693056612,-500.0,0.00015616,2]
[334029850,1722693056623,-500.0,0.00015616,2]
[334029851,1722693056635,-442.6782125,0.00015616,2]
[334029852,1722693057659,-500.0,0.00013698,2]
[334029853,1722693057669,-500.0,0.00013972,2]
[334029854,1722693057679,-500.0,0.00014246,2]
[334029855,1722693057693,-151.3,0.0001452,2]
[334029856,1722693057703,-655.7117875,0.00015616,2]
[334029857,1722693057713,-1108.09,0.00015616,2]
[334029858,1722693057723,-500.0,0.00015616,2]
[334029859,1722693057732,-500.0,0.00015616,2]
[334029860,1722693057741,-1714.38,0.00015616,2]
[334029861,1722693057751,-2401.23,0.00015616,2]
[334029862,1722693057760,-2000.0,0.00015683,2]
[334029863,1722693057771,-2000.0,0.00015691,2]
[334029864,1722693057781,-300.0,0.000157,6]
[334029865,1722693057790,-2000.0,0.000157,2]
[334029866,1722693057800,-21357.8928575,0.00015707,2]
[334029867,1722693057811,-349.02244549,0.00015707,2]
[334029868,1722693058220,-2005.703489,0.00015707,2]
[334029869,1722693079014,496.62,0.00010959,2]
[334029876,1722693367466,180.08371365,0.00025,120]
[334029878,1722693750706,845.38878034,9.999e-05,2]
[334029883,1722693950720,845.38878034,9.999e-05,2]
[334029884,1722694011160,-256.32161214,0.0001212,2]
[334029885,1722694011182,-185.02789215,0.00012183,2]
[334029886,1722694156094,-300.0,0.00011483,2]
[334029887,1722694156120,-300.0,0.00011483,2]
[334029888,1722694156146,-6444.834468,0.00011484,2]
[334030021,1722694238910,-300.0,0.00011483,2]
[334030022,1722694238924,-300.0,0.00011483,2]
[334030024,1722694238934,-18455.165532,0.00011484,2]
[334030026,1722694238945,-64.97210785,0.00012183,2]
[334030028,1722694238955,-250.0,0.00012216,2]
[334030030,1722694238965,-250.0,0.0001225,2]
[334030032,1722694238974,-250.0,0.00012283,2]
[334030034,1722694238983,-250.0,0.00012317,2]
[334030036,1722694238993,-250.0,0.0001235,2]
[334030039,1722694239014,-512.30265398,0.00012372,2]
[334030040,1722694239025,-250.0,0.00012383,2]
[334030042,1722694239035,-250.0,0.00012417,2]
[334030044,1722694239044,-250.0,0.0001245,2]
[334030046,1722694239054,-250.0,0.00012484,2]
[334030048,1722694239064,-250.0,0.00012517,2]
[334030050,1722694239074,-250.0,0.00012551,2]
[334030051,1722694239084,-250.0,0.00012584,2]
[334030052,1722694239094,-250.0,0.00012617,2]
[334030053,1722694239104,-420.0,0.00012631,2]
[334030054,1722694239114,-250.0,0.00012651,2]
[334030055,1722694239124,-250.0,0.00012684,2]
[334030056,1722694239133,-250.0,0.00012718,2]
[334030057,1722694239143,-250.0,0.00012751,2]
[334030058,1722694239153,-781.1971815,0.00012771,2]
[334030059,1722694239163,-250.0,0.00012785,2]
[334030060,1722694239172,-250.0,0.00012818,2]
[334030061,1722694239182,-2439.11818982,0.000129,2]
[334030062,1722694239191,-166.909615,0.00012986,2]
[334030063,1722694239201,-1592.57526222,0.00013598,2]
[334030064,1722694239212,-35293.564523,0.00013688,2]
[334030065,1722694239222,-500.0,0.00013696,2]
[334030066,1722694239231,-500.0,0.00013697,2]
[334030067,1722694239241,-500.0,0.00013697,2]
[334030068,1722694239250,-447.8323181,0.00013698,2]
[334030069,1722694239260,-500.0,0.00013698,2]
[334030070,1722694239271,-500.0,0.00013698,2]
[334030071,1722694239280,-500.0,0.00013698,2]
[334030072,1722694239290,-505.54303621,0.00013698,2]
[334030073,1722694239300,-500.0,0.00013698,2]
[334030074,1722694239310,-500.0,0.00013698,2]
[334030075,1722694239321,-500.0,0.00013698,2]
[334030076,1722694239331,-185.19096211,0.00013698,2]
[334030077,1722694239341,-500.0,0.00013698,2]
[334030078,1722694239350,-563.39,0.00013698,2]
[334030079,1722694239360,-500.0,0.00013698,2]
[334030080,1722694239370,-502.67353918,0.00013698,2]
[334030081,1722694239379,-500.0,0.00013698,2]
[334030082,1722694239389,-500.0,0.00013698,2]
[334030083,1722694239399,-257.52074105,0.00013698,2]
[334030084,1722694239409,-500.0,0.00013698,2]
[334030085,1722694239419,-500.0,0.00013698,2]
[334030086,1722694239429,-286.99440563,0.00013698,2]
[334030087,1722694239439,-500.0,0.00013698,2]
[334030088,1722694239448,-500.0,0.00013698,2]
[334030089,1722694239458,-180.58631501,0.00013698,2]
[334030090,1722694239468,-500.0,0.00013698,2]
[334030091,1722694239478,-707.53,0.00013698,2]
[334030092,1722694239487,-500.0,0.00013698,2]
[334030093,1722694239498,-500.0,0.00013698,2]
[334030094,1722694239507,-500.0,0.00013698,2]
[334030095,1722694239517,-500.0,0.00013698,2]
[334030096,1722694239527,-500.0,0.00013698,2]
[334030097,1722694239536,-500.0,0.00013698,2]
[334030098,1722694239546,-500.0,0.00013698,2]
[334030099,1722694239555,-500.0,0.00013698,2]
[334030100,1722694239565,-500.0,0.00013698,2]
[334030101,1722694239575,-500.0,0.00013698,2]
[334030102,1722694239584,-500.0,0.00013698,2]
[334030103,1722694239594,-500.0,0.00013698,2]
[334030104,1722694239603,-554.35,0.00013698,2]
[334030105,1722694239613,-1394.8,0.00013698,2]
[334030106,1722694239622,-500.0,0.00013698,2]
[334030107,1722694239631,-500.0,0.00013698,2]
[334030108,1722694239640,-500.0,0.00013698,2]
[334030109,1722694239650,-500.0,0.00013698,2]
[334030110,1722694239660,-500.0,0.00013698,2]
[334030111,1722694239669,-500.0,0.00013698,2]
[334030112,1722694239679,-500.0,0.00013698,2]
[334030113,1722694239689,-500.0,0.00013698,2]
[334030114,1722694239699,-500.0,0.00013698,2]
[334030115,1722694239709,-805.23,0.00013698,2]
[334030116,1722694239719,-500.0,0.00013698,2]
[334030117,1722694239729,-500.0,0.00013698,2]
[334030118,1722694239739,-500.0,0.00013698,2]
[334030119,1722694239749,-854.56,0.00013698,2]
[334030120,1722694239759,-569.81,0.00013698,2]
[334030121,1722694239768,-504.84179154,0.00013698,2]
[334030122,1722694239778,-500.0,0.00013698,2]
[334030123,1722694239788,-1213.24,0.00013698,2]
[334030124,1722694239798,-500.0,0.00013698,2]
[334030125,1722694239807,-500.0,0.00013698,2]
[334030126,1722694239817,-755.86,0.00013698,2]
[334030127,1722694239827,-500.0,0.00013698,2]
[334030128,1722694239837,-500.0,0.00013698,2]
[334030129,1722694239847,-500.0,0.00013698,2]
[334030130,1722694239861,-500.0,0.00013698,2]
[334030131,1722694239870,-500.0,0.00013698,2]
[334030132,1722694239880,-652.65,0.00013698,2]
[334030133,1722694239890,-500.0,0.00013698,2]
[334030134,1722694239900,-500.0,0.00013698,2]
[334030135,1722694239911,-500.0,0.00013698,2]
[334030136,1722694239924,-2629.4215441,0.00013698,2]
[334030137,1722694239934,-362.02501254,0.00013698,2]
[334030138,1722694239944,-500.0,0.00013698,2]
[334030139,1722694239955,-500.0,0.00013698,2]
[334030140,1722694239964,-1817.88,0.00013698,2]
[334030141,1722694239974,-2142.55,0.00013698,2]
[334030142,1722694239985,-836.1,0.00013698,2]
[334030143,1722694239996,-162.00744885,0.00013698,2]
[334030144,1722694240006,-500.0,0.00013698,2]
[334030145,1722694240016,-500.0,0.00013698,2]
[334030147,1722694240027,-301.13484717,0.00013698,2]
[334030148,1722694240036,-500.0,0.00013698,2]
[334030149,1722694240046,-500.0,0.00013698,2]
[334030150,1722694240056,-6046.23,0.00013698,2]
[334030151,1722694240065,-500.0,0.00013698,2]
[334030152,1722694240075,-1797.07,0.00013698,2]
[334030153,1722694240085,-500.0,0.00013698,2]
[334030154,1722694240095,-500.0,0.00013698,2]
[334030155,1722694240106,-500.0,0.00013698,2]
[334030156,1722694240115,-500.0,0.00013698,2]
[334030157,1722694240125,-4906.58,0.00013698,2]
[334030158,1722694240134,-500.0,0.00013698,2]
[334030159,1722694240144,-500.0,0.00013698,2]
[334030160,1722694240155,-500.0,0.00013698,2]
[334030161,1722694240165,-500.0,0.00013698,2]
[334030162,1722694240176,-500.0,0.00013698,2]
[334030163,1722694240186,-500.0,0.00013698,2]
[334030164,1722694240196,-2316.24,0.00013698,2]
[334030165,1722694240206,-500.0,0.00013698,2]
[334030166,1722694240216,-500.0,0.00013698,2]
[334030167,1722694240226,-557.51,0.00013698,2]
[334030168,1722694240235,-1124.48,0.00013698,2]
[334030169,1722694240245,-503.3,0.00013698,2]
[334030170,1722694240255,-500.0,0.00013698,2]
[334030171,1722694240264,-500.0,0.00013698,2]
[334030172,1722694240274,-809.45,0.00013698,2]
[334030173,1722694240284,-500.0,0.00013698,2]
[334030179,1722694240412,-500.0,0.00013698,2]
[334030180,1722694240422,-500.0,0.00013698,2]
[334030181,1722694240432,-500.0,0.00013698,2]
[334030182,1722694240441,-1803.75,0.00013698,2]
[334030183,1722694240451,-500.0,0.00013698,2]
[334030184,1722694240460,-500.0,0.00013698,2]
[334030185,1722694240470,-1639.53,0.00013698,2]
[334030186,1722694240479,-953.84,0.00013698,2]
[334030187,1722694240488,-741.87,0.00013698,2]
[334030188,1722694240498,-645.15,0.00013698,2]
[334030189,1722694240507,-426.30747398,0.00013698,2]
[334030190,1722694240517,-5565.24,0.00013698,2]
[334030191,1722694240526,-500.0,0.00013698,2]
[334030192,1722694240535,-500.0,0.00013698,2]
[334030193,1722694240544,-500.0,0.00013698,2]
[334030194,1722694240553,-1443.44,0.00013698,2]
[334030195,1722694240563,-500.0,0.00013698,2]
[334030196,1722694240575,-500.0,0.00013698,2]
[334030197,1722694240584,-500.0,0.00013698,2]
[334030198,1722694240594,-500.0,0.00013698,2]
[334030199,1722694240603,-500.0,0.00013698,2]
[334030200,1722694240612,-500.0,0.00013698,2]
[334030201,1722694240621,-500.0,0.00013698,2]
[334030202,1722694240631,-3697.92,0.00013698,2]
[334030203,1722694240641,-500.0,0.00013698,2]
[334030204,1722694240650,-2194.66,0.00013698,2]
[334030205,1722694240661,-757.17,0.00013698,2]
[334030206,1722694240671,-500.0,0.00013698,2]
[334030207,1722694240683,-500.0,0.00013698,2]
[334030208,1722694240692,-710.84,0.00013698,2]
[334030209,1722694240701,-500.0,0.00013698,2]
[334030210,1722694240710,-855.36,0.00013698,2]
[334030211,1722694240720,-500.0,0.00013698,2]
[334030212,1722694240730,-500.0,0.00013698,2]
[334030213,1722694240741,-500.0,0.00013698,2]
[334030214,1722694240750,-554.27,0.00013698,2]
[334030215,1722694240761,-500.0,0.00013698,2]
[334030216,1722694240771,-861.98,0.00013698,2]
[334030217,1722694240782,-500.0,0.00013698,2]
[334030218,1722694240792,-500.0,0.00013698,2]
[334030219,1722694240802,-1336.22,0.00013698,2]
[334030220,1722694240812,-760.81,0.00013698,2]
[334030221,1722694240824,-500.0,0.00013698,2]
[334030222,1722694240833,-500.0,0.00013698,2]
[334030223,1722694240842,-526.98226081,0.00013698,2]
[334030224,1722694240852,-513.87,0.00013698,2]
[334030225,1722694240861,-287.77447618,0.00013698,2]
[334030226,1722694240871,-915.32,0.00013698,2]
[334030227,1722694240881,-1058.63,0.00013698,2]
[334030228,1722694240893,-500.0,0.00013698,2]
[334030229,1722694240914,-923.41,0.00013698,2]
[334030230,1722694240928,-2001.02,0.00013698,2]
[334030231,1722694240940,-556.77,0.00013698,2]
[334030232,1722694240954,-972.87,0.00013698,2]
[334030233,1722694240964,-500.0,0.00013698,2]
[334030234,1722694240974,-1428.65,0.00013698,2]
[334030235,1722694240984,-500.0,0.00013698,2]
[334030236,1722694240995,-249.7351655,0.00013699,2]
[334030237,1722694241006,-194.54850496,0.00013699,2]
[334030238,1722694241016,-261.19201773,0.000137,2]
[334030239,1722694241027,-1592.57526218,0.00013735,2]
[334030240,1722694241037,-1592.57526218,0.00013872,2]
[334030241,1722694241047,-587.0,0.00013895,2]
[334030242,1722694241058,-1410.0,0.00013908,2]
[334030243,1722694241068,-35293.564523,0.00013962,2]
[334030244,1722694241079,-194.77894029,0.00013971,2]
[334030245,1722694241092,-500.0,0.00013971,2]
[334030246,1722694241102,-243.23846212,0.00013971,2]
[334030247,1722694241113,-416.5,0.00013971,2]
[334030248,1722694241123,-162.18064451,0.00013971,2]
[334030249,1722694241133,-500.0,0.00013971,2]
[334030250,1722694241144,-198.51416795,0.00013971,2]
[334030251,1722694241153,-500.0,0.00013971,2]
[334030252,1722694241163,-500.0,0.00013971,2]
[334030253,1722694241175,-563.39,0.00013972,2]
[334030254,1722694241185,-500.0,0.00013972,2]
[334030255,1722694241196,-500.0,0.00013972,2]
[334030256,1722694241207,-422.94463536,0.00013972,2]
[334030257,1722694241218,-500.0,0.00013972,2]
[334030258,1722694241228,-707.53,0.00013972,2]
[334030259,1722694241238,-500.0,0.00013972,2]
[334030260,1722694241249,-500.0,0.00013972,2]
[334030261,1722694241259,-506.22815648,0.00013972,2]
[334030262,1722694241269,-500.0,0.00013972,2]
[334030263,1722694241279,-500.0,0.00013972,2]
[334030264,1722694241290,-500.0,0.00013972,2]
[334030265,1722694241299,-554.35,0.00013972,2]
[334030266,1722694241311,-1394.8,0.00013972,2]
[334030267,1722694241322,-500.0,0.00013972,2]
[334030268,1722694241342,-150.41870089,0.00013972,2]
[334030269,1722694241351,-500.0,0.00013972,2]
[334030270,1722694241360,-500.0,0.00013972,2]
[334030271,1722694241370,-500.0,0.00013972,2]
[334030272,1722694241380,-500.0,0.00013972,2]
[334030273,1722694241389,-500.0,0.00013972,2]
[334030274,1722694241398,-805.23,0.00013972,2]
[334030275,1722694241408,-500.0,0.00013972,2]